fUSD/lending_fUSD_20250216
["ID","MTS","AMOUNT","RATE_DAILY","PERIOD"]
[353266815,1739722283291,-609.14,0.00012764,2]
[353266816,1739722283301,-512.74,0.00012764,2]
[353266817,1739722283310,-892.17,0.00012764,2]
[353266818,1739722283319,-500.0,0.00012764,2]
[353266819,1739722283328,-663.59,0.00012764,2]
[353266820,1739722283338,-1575.94,0.00012764,2]
[353266821,1739722283347,-612.7,0.00012764,2]
[353266822,1739722283357,-500.0,0.00012764,2]
[353266823,1739722283366,-558.19,0.00012764,2]
[353266824,1739722283377,-500.0,0.00012764,2]
[353266825,1739722283386,-500.0,0.00012764,2]
[353266826,1739722283396,-690.88,0.00012764,2]
[353266827,1739722283406,-1095.32,0.00012764,2]
[353266828,1739722283416,-500.0,0.00012764,2]
[353266829,1739722283426,-680.75,0.00012764,2]
[353266830,1739722283436,-865.4,0.00012764,2]
[353266831,1739722283446,-649.43,0.00012764,2]
[353266832,1739722283456,-692.22,0.00012764,2]
[353266833,1739722283466,-1772.42,0.00012764,2]
[353266834,1739722283475,-873.89,0.00012764,2]
[353266835,1739722283486,-941.43,0.00012764,2]
[353266836,1739722283495,-500.0,0.00012764,2]
[353266837,1739722283505,-500.0,0.00012764,2]
[353266838,1739722283514,-549.57,0.00012764,2]
[353266839,1739722283524,-733.73,0.00012764,2]
[353266840,1739722283534,-862.86,0.00012764,2]
[353266841,1739722283544,-604.23,0.00012764,2]
[353266842,1739722283553,-784.87,0.00012764,2]
[353266843,1739722283563,-500.0,0.00012764,2]
[353266844,1739722283573,-975.8,0.00012764,2]
[353266845,1739722283582,-2237.07,0.00012764,2]
[353266846,1739722283592,-525.89,0.00012764,2]
[353266847,1739722283603,-151.0,0.00012765,2]
[353266848,1739722283613,-261.990651,0.00012765,2]
[353266849,1739722283622,-261.990651,0.00012765,2]
[353266850,1739722283632,-2028.48255,0.00012765,2]
[353266851,1739722283641,-2028.48255,0.00012765,2]
[353266852,1739722283650,-215.845351,0.00012765,2]
[353266853,1739722283659,-215.845351,0.00012765,2]
[353266854,1739722283668,-10000.0,0.00012765,2]
[353266855,1739722283677,-10000.0,0.00012765,2]
[353266856,1739722283687,-10000.0,0.00012765,2]
[353266857,1739722283696,-10000.0,0.00012765,2]
[353266858,1739722283705,-10000.0,0.00012765,2]
[353266859,1739722283714,-10000.0,0.00012765,2]
[353266860,1739722283723,-553.720203,0.00012765,2]
[353266861,1739722283732,-553.720203,0.00012765,2]
[353266862,1739722283741,-579.79,0.00012765,2]
[353266863,1739722283751,-706.17,0.00012765,2]
[353266864,1739722283760,-500.0,0.00012765,2]
[353266865,1739722283770,-768.0,0.00012765,2]
[353266866,1739722283779,-472.60193413,0.00012765,2]
[353266867,1739722283789,-579.91,0.00012765,2]
[353266868,1739722283798,-809.97,0.00012765,2]
[353266869,1739722283807,-969.53,0.00012765,2]
[353266870,1739722283816,-721.65,0.00012765,2]
[353266871,1739722283825,-537.83,0.00012765,2]
[353266872,1739722283835,-742.79,0.00012765,2]
[353266873,1739722283845,-849.81,0.00012765,2]
[353266874,1739722283854,-788.66,0.00012765,2]
[353266875,1739722283864,-730.86,0.00012765,2]
[353266876,1739722283873,-899.47,0.00012765,2]
[353266877,1739722283883,-209.376457,0.00012766,2]
[353266878,1739722283893,-209.376457,0.00012766,2]
[353266879,1739722283902,-152.952406,0.00012767,2]
[353266880,1739722283912,-306.1800572,0.00012772,2]
[353266881,1739722283921,-1103.18955845,0.0001278,2]
[353266882,1739722283930,-1128.78681631,0.0001278,2]
[353266883,1739722283939,-192.62,0.00012796,2]
[353266884,1739722283949,-680.35,0.00012824,2]
[353266885,1739722283959,-730.51,0.00012824,2]
[353266886,1739722283969,-744.11,0.00012824,2]
[353266887,1739722283979,-518.56,0.00012824,2]
[353266888,1739722283988,-1094.78,0.00012824,2]
[353266889,1739722283998,-1254.55,0.00012824,2]
[353266890,1739722284008,-624.5,0.00012824,2]
[353266891,1739722284017,-561.95,0.00012824,2]
[353266892,1739722284028,-1045.33,0.00012824,2]
[353266893,1739722284040,-500.0,0.00012824,2]
[353266894,1739722284050,-562.41,0.00012824,2]
[353266895,1739722284058,-537.7,0.00012824,2]
[353266896,1739722284068,-1330.29,0.00012824,2]
[353266897,1739722284079,-1309.87,0.00012824,2]
[353266898,1739722284088,-587.45,0.00012824,2]
[353266899,1739722284097,-954.36,0.00012824,2]
[353266900,1739722284106,-2189.30641,0.0001283,2]
[353266901,1739722284117,-319.22694444,0.00012846,2]
[353266902,1739722284128,-527.75,0.00012846,2]
[353266903,1739722284137,-500.0,0.00012846,2]
[353266904,1739722284146,-649.78,0.00012846,2]
[353266905,1739722284155,-1206.44,0.00012846,2]
[353266906,1739722284165,-334.019757,0.00012846,2]
[353266907,1739722284175,-706.8,0.00012846,2]
[353266908,1739722284184,-605.49524815,0.00012846,2]
[353266909,1739722284194,-500.0,0.00012846,2]
[353266910,1739722284204,-442.486785,0.00012846,2]
[353266911,1739722284213,-2145.36,0.00012846,2]
[353266912,1739722284221,-956.97,0.00012846,2]
[353266913,1739722284231,-536.29,0.00012846,2]
[353266914,1739722284240,-747.46,0.00012846,2]
[353266915,1739722284249,-500.0,0.00012846,2]
[353266916,1739722284259,-692.26,0.00012846,2]
[353266917,1739722284268,-609.14,0.00012846,2]
[353266918,1739722284277,-512.74,0.00012846,2]
[353266919,1739722284286,-892.17,0.00012846,2]
[353266920,1739722284295,-500.0,0.00012846,2]
[353266921,1739722284304,-663.59,0.00012846,2]
[353266922,1739722284314,-1575.94,0.00012846,2]
[353266923,1739722284322,-612.7,0.00012846,2]
[353266924,1739722284331,-500.0,0.00012846,2]
[353266925,1739722284341,-558.19,0.00012846,2]
[353266926,1739722284351,-197.69337714,0.00012846,2]
[353266927,1739722284361,-242.10648914,0.00012846,2]
[353266928,1739722284370,-690.88,0.00012846,2]
[353266929,1739722284379,-1095.32,0.00012846,2]
[353266930,1739722284389,-500.0,0.00012846,2]
[353266931,1739722284398,-680.75,0.00012846,2]
[353266932,1739722284408,-865.4,0.00012846,2]
[353266933,1739722284419,-649.43,0.00012846,2]
[353266934,1739722284428,-692.22,0.00012846,2]
[353266935,1739722284438,-1772.42,0.00012846,2]
[353266936,1739722284447,-873.89,0.00012846,2]
[353266937,1739722284457,-941.43,0.00012846,2]
[353266938,1739722284466,-500.0,0.00012846,2]
[353266939,1739722284476,-466.54,0.00012846,2]
[353266940,1739722284485,-549.57,0.00012846,2]
[353266941,1739722284495,-733.73,0.00012846,2]
[353266942,1739722284505,-862.86,0.00012846,2]
[353266943,1739722284514,-604.23,0.00012846,2]
[353266944,1739722284524,-784.87,0.00012846,2]
[353266945,1739722284533,-500.0,0.00012846,2]
[353266946,1739722284542,-975.8,0.00012846,2]
[353266947,1739722284551,-2237.07,0.00012846,2]
[353266948,1739722284560,-525.89,0.00012846,2]
[353266949,1739722284569,-579.79,0.00012847,2]
[353266950,1739722284579,-706.17,0.00012847,2]
[353266951,1739722284588,-240.98756458,0.00012847,2]
[353266952,1739722284598,-768.0,0.00012847,2]
[353266953,1739722284608,-579.91,0.00012847,2]
[353266954,1739722284617,-809.97,0.00012847,2]
[353266955,1739722284626,-969.53,0.00012847,2]
[353266956,1739722284635,-721.65,0.00012847,2]
[353266957,1739722284645,-537.83,0.00012847,2]
[353266958,1739722284654,-742.79,0.00012847,2]
[353266959,1739722284663,-849.81,0.00012847,2]
[353266960,1739722284672,-788.66,0.00012847,2]
[353266961,1739722284682,-730.86,0.00012847,2]
[353266962,1739722284691,-899.47,0.00012847,2]
[353266963,1739722284701,-162.099236,0.00012849,2]
[353266964,1739722284710,-162.099236,0.00012849,2]
[353266965,1739722284719,-151.0,0.00012849,2]
[353266966,1739722284729,-322.805,0.00012849,2]
[353266967,1739722284739,-322.805,0.00012849,2]
[353266968,1739722284750,-339.934172,0.00012849,2]
[353266969,1739722284760,-339.934172,0.00012849,2]
[353266970,1739722284769,-151.0,0.00012849,2]
[353266971,1739722284778,-151.0,0.00012849,2]
[353266972,1739722284787,-182.476718,0.00012849,2]
[353266973,1739722284795,-182.476718,0.00012849,2]
[353266974,1739722284805,-151.509837,0.00012849,2]
[353266975,1739722284814,-779.492013,0.00012849,2]
[353266976,1739722284824,-779.492013,0.00012849,2]
[353266977,1739722284834,-151.0,0.00012849,2]
[353266978,1739722284845,-397.612057,0.00012849,2]
[353266979,1739722284854,-397.612062,0.00012849,2]
[353266980,1739722284863,-500.0,0.00012849,2]
[353266981,1739722284873,-252.02,0.00012877,2]
[353266982,1739722284882,-152.0,0.00012893,4]
[353266983,1739722284891,-151.0,0.00012893,2]
[353266984,1739722284901,-279.565284,0.00012893,2]
[353266985,1739722284911,-279.565284,0.00012893,2]
[353266986,1739722284920,-151.0,0.00012893,2]
[353266987,1739722284930,-305.72,0.00012893,2]
[353266988,1739722284939,-305.72,0.00012893,2]
[353266989,1739722284947,-151.0,0.00012893,2]
[353266990,1739722284956,-151.0,0.00012893,2]
[353266991,1739722284966,-225.15803,0.00012893,2]
[353266992,1739722284975,-225.15803,0.00012893,2]
[353266993,1739722284984,-270.932697,0.00012893,2]
[353266994,1739722284993,-270.932697,0.00012893,2]
[353266995,1739722285003,-488.052487,0.00012893,2]
[353266996,1739722285012,-488.052487,0.00012893,2]
[353266997,1739722285021,-680.35,0.00012906,2]
[353266998,1739722285031,-730.51,0.00012906,2]
[353266999,1739722285043,-744.11,0.00012906,2]
[353267000,1739722285052,-518.56,0.00012906,2]
[353267001,1739722285061,-1094.78,0.00012906,2]
[353267002,1739722285070,-1254.55,0.00012906,2]
[353267003,1739722285081,-624.5,0.00012906,2]
[353267004,1739722285090,-561.95,0.00012906,2]
[353267005,1739722285099,-1045.33,0.00012906,2]
[353267006,1739722285109,-582.94997157,0.00012906,2]
[353267007,1739722285119,-562.41,0.00012906,2]
[353267008,1739722285128,-537.7,0.00012906,2]
[353267009,1739722285137,-1330.29,0.00012906,2]
[353267010,1739722285147,-1309.87,0.00012906,2]
[353267011,1739722285157,-587.45,0.00012906,2]
[353267012,1739722285167,-954.36,0.00012906,2]
[353267013,1739722285177,-649.78,0.00012928,2]
[353267014,1739722285186,-1206.44,0.00012928,2]
[353267015,1739722285195,-706.8,0.00012928,2]
[353267016,1739722285205,-611.22,0.00012928,2]
[353267017,1739722285214,-956.97,0.00012928,2]
[353267018,1739722285378,-747.46,0.00012928,2]
[353267019,1739722285387,-692.26,0.00012928,2]
[353267020,1739722285397,-892.17,0.00012928,2]
[353267021,1739722285406,-500.0,0.00012928,2]
[353267022,1739722285415,-612.7,0.00012928,2]
[353267023,1739722285426,-458.17438975,0.00012928,2]
[353267024,1739722285435,-1095.32,0.00012928,2]
[353267025,1739722285445,-500.0,0.00012928,2]
[353267026,1739722285455,-649.43,0.00012928,2]
[353267027,1739722285465,-692.22,0.00012928,2]
[353267028,1739722285475,-941.43,0.00012928,2]
[353267029,1739722285484,-549.57,0.00012928,2]
[353267030,1739722285494,-733.73,0.00012928,2]
[353267031,1739722285503,-862.86,0.00012928,2]
[353267032,1739722285514,-604.23,0.00012928,2]
[353267033,1739722285523,-784.87,0.00012928,2]
[353267034,1739722285533,-455.62711431,0.00012928,2]
[353267035,1739722285543,-975.8,0.00012928,2]
[353267036,1739722285552,-2237.07,0.00012928,2]
[353267037,1739722285561,-527.75,0.00012929,2]
[353267038,1739722285571,-500.0,0.00012929,2]
[353267039,1739722285581,-334.019757,0.00012929,2]
[353267040,1739722285591,-768.0,0.00012929,2]
[353267041,1739722285600,-442.486785,0.00012929,2]
[353267042,1739722285609,-2145.36,0.00012929,2]
[353267043,1739722285619,-579.91,0.00012929,2]
[353267044,1739722285629,-536.29,0.00012929,2]
[353267045,1739722285639,-500.0,0.00012929,2]
[353267046,1739722285650,-609.14,0.00012929,2]
[353267047,1739722285659,-809.97,0.00012929,2]
[353267048,1739722285668,-512.74,0.00012929,2]
[353267049,1739722285678,-969.53,0.00012929,2]
[353267050,1739722285687,-663.59,0.00012929,2]
[353267051,1739722285696,-1575.94,0.00012929,2]
[353267052,1739722285706,-558.19,0.00012929,2]
[353267053,1739722285715,-537.83,0.00012929,2]
[353267054,1739722285725,-690.88,0.00012929,2]
[353267055,1739722285734,-742.79,0.00012929,2]
[353267056,1739722285743,-680.75,0.00012929,2]
[353267057,1739722285752,-849.81,0.00012929,2]
[353267058,1739722285762,-865.4,0.00012929,2]
[353267059,1739722285771,-1772.42,0.00012929,2]
[353267060,1739722285780,-873.89,0.00012929,2]
[353267061,1739722285790,-788.66,0.00012929,2]
[353267062,1739722285800,-730.86,0.00012929,2]
[353267063,1739722285810,-500.0,0.00012929,2]
[353267064,1739722285819,-899.47,0.00012929,2]
[353267065,1739722285829,-525.89,0.00012929,2]
[353267066,1739722285838,-580.01755953,0.0001293,2]
[353267067,1739722285847,-706.21731496,0.0001293,2]
[353267068,1739722285856,-721.81649364,0.0001293,2]
[353267069,1739722285866,-151.0,0.00012933,2]
[353267070,1739722285875,-680.57767351,0.00012989,2]
[353267071,1739722285885,-730.63783323,0.00012989,2]
[353267072,1739722285894,-744.22548511,0.00012989,2]
[353267073,1739722285904,-518.71171198,0.00012989,2]
[353267074,1739722285914,-1094.96624252,0.00012989,2]
[353267075,1739722285924,-1254.5826103,0.00012989,2]
[353267076,1739722285934,-624.70072781,0.00012989,2]
[353267077,1739722285944,-562.15148764,0.00012989,2]
[353267078,1739722285954,-1045.42650772,0.00012989,2]
[353267079,1739722285963,-562.60613455,0.00012989,2]
[353267080,1739722285972,-537.92083584,0.00012989,2]
[353267081,1739722285981,-1330.50330683,0.00012989,2]
[353267082,1739722285991,-1309.89337698,0.00012989,2]
[353267083,1739722286000,-587.62567887,0.00012989,2]
[353267084,1739722286009,-954.48426475,0.00012989,2]
[353267085,1739722286019,-3500.0,0.00013,2]
[353267086,1739722286028,-50877.35521635,0.00013,2]
[353267087,1739722286042,-5341.02694055,0.00013,2]
[353267088,1739722286052,-209.376457,0.00013,2]
[353267089,1739722286061,-209.37645748,0.00013,2]
[353267090,1739722286070,-4241.40561177,0.00013,2]
[353267091,1739722286080,-151.0,0.00013,2]
[353267092,1739722286089,-151.0,0.00013,2]
[353267093,1739722286098,-332.869596,0.00013,2]
[353267094,1739722286108,-332.869596,0.00013,2]
[353267095,1739722286118,-151.0,0.00013,2]
[353267096,1739722286128,-1768.352971,0.00013,2]
[353267097,1739722286137,-1768.352971,0.00013,2]
[353267098,1739722286146,-151.0,0.00013,2]
[353267099,1739722286155,-151.0,0.00013,2]
[353267100,1739722286164,-522.067108,0.00013,2]
[353267101,1739722286174,-522.067108,0.00013,2]
[353267102,1739722286183,-188.935138,0.00013,2]
[353267103,1739722286191,-188.935138,0.00013,2]
[353267104,1739722286200,-167.537347,0.00013,2]
[353267105,1739722286210,-550.0,0.00013,2]
[353267106,1739722286219,-1000.0,0.0001301,2]
[353267107,1739722286228,-649.78,0.0001301,2]
[353267108,1739722286237,-1206.44,0.0001301,2]
[353267109,1739722286246,-706.8,0.0001301,2]
[353267110,1739722286255,-956.97,0.0001301,2]
[353267111,1739722286265,-747.46,0.0001301,2]
[353267112,1739722286275,-692.26,0.0001301,2]
[353267113,1739722286283,-892.17,0.0001301,2]
[353267114,1739722286293,-351.4107292,0.0001301,2]
[353267115,1739722286302,-612.7,0.0001301,2]
[353267116,1739722286311,-1095.32,0.0001301,2]
[353267117,1739722286321,-373.3314255,0.0001301,2]
[353267118,1739722286331,-649.43,0.0001301,2]
[353267119,1739722286340,-692.22,0.0001301,2]
[353267120,1739722286350,-941.43,0.0001301,2]
[353267121,1739722286359,-549.57,0.0001301,2]
[353267122,1739722286368,-733.73,0.0001301,2]
[353267123,1739722286377,-862.86,0.0001301,2]
[353267124,1739722286387,-604.23,0.0001301,2]
[353267125,1739722286397,-784.87,0.0001301,2]
[353267126,1739722286406,-975.8,0.0001301,2]
[353267127,1739722286415,-2237.07,0.0001301,2]
[353267128,1739722286424,-527.86353122,0.00013011,2]
[353267129,1739722286434,-185.14704328,0.00013011,2]
[353267130,1739722286443,-334.019757,0.00013011,2]
[353267131,1739722286452,-768.0,0.00013011,2]
[353267132,1739722286462,-442.486785,0.00013011,2]
[353267133,1739722286471,-2145.46087265,0.00013011,2]
[353267134,1739722286480,-579.91,0.00013011,2]
[353267135,1739722286489,-536.32062188,0.00013011,2]
[353267136,1739722286499,-435.05879377,0.00013011,2]
[353267137,1739722286508,-609.29361626,0.00013011,2]
[353267138,1739722286517,-809.97,0.00013011,2]
[353267139,1739722286526,-512.96080525,0.00013011,2]
[353267140,1739722286535,-969.53,0.00013011,2]
[353267141,1739722286545,-663.64218586,0.00013011,2]
[353267142,1739722286554,-1576.12569753,0.00013011,2]
[353267143,1739722286564,-558.28788745,0.00013011,2]
[353267144,1739722286574,-537.83,0.00013011,2]
[353267145,1739722286583,-690.97918098,0.00013011,2]
[353267146,1739722286593,-742.79,0.00013011,2]
[353267147,1739722286602,-680.80663072,0.00013011,2]
[353267148,1739722286611,-849.81,0.00013011,2]
[353267149,1739722286621,-865.60814177,0.00013011,2]
[353267150,1739722286631,-1772.43760743,0.00013011,2]
[353267151,1739722286640,-874.01597802,0.00013011,2]
[353267152,1739722286649,-788.66,0.00013011,2]
[353267153,1739722286659,-730.86,0.00013011,2]
[353267154,1739722286668,-172.64749376,0.00013011,2]
[353267155,1739722286678,-899.47,0.00013011,2]
[353267156,1739722286688,-526.01300966,0.00013011,2]
[353267157,1739722286697,-198.614322,0.00013012,2]
[353267158,1739722286706,-198.614322,0.00013012,2]
[353267159,1739722286716,-151.0,0.00013012,2]
[353267160,1739722286726,-180.477181,0.00013012,2]
[353267161,1739722286736,-151.865269,0.00013012,2]
[353267162,1739722286745,-2689.395126,0.00013012,2]
[353267163,1739722286755,-2689.395126,0.00013012,2]
[353267164,1739722286765,-151.0,0.00013012,2]
[353267165,1739722286775,-421.23963344,0.00013038,2]
[353267166,1739722286786,-200.0,0.00013041,2]
[353267167,1739722286797,-5121.53353719,0.0001305,2]
[353267168,1739722286807,-152.0,0.00013067,5]
[353267169,1739722286816,-1060.0,0.00013076,2]
[353267170,1739722286827,-649.79175683,0.00013093,2]
[353267171,1739722286836,-1206.59449956,0.00013093,2]
[353267172,1739722286845,-706.9405031,0.00013093,2]
[353267173,1739722286855,-768.0,0.00013093,2]
[353267174,1739722286864,-957.20178013,0.00013093,2]
[353267175,1739722286872,-579.91,0.00013093,2]
[353267176,1739722286882,-747.48510102,0.00013093,2]
[353267177,1739722286891,-692.32418954,0.00013093,2]
[353267178,1739722286900,-809.97,0.00013093,2]
[353267179,1739722286910,-892.29186548,0.00013093,2]
[353267180,1739722286919,-969.53,0.00013093,2]
[353267181,1739722286928,-612.75894876,0.00013093,2]
[353267182,1739722286938,-537.83,0.00013093,2]
[353267183,1739722286947,-1095.36111119,0.00013093,2]
[353267184,1739722286956,-742.79,0.00013093,2]
[353267185,1739722286965,-849.81,0.00013093,2]
[353267186,1739722286974,-649.53143801,0.00013093,2]
[353267187,1739722286983,-692.30695243,0.00013093,2]
[353267188,1739722286993,-788.66,0.00013093,2]
[353267189,1739722287002,-730.86,0.00013093,2]
[353267190,1739722287011,-941.55283886,0.00013093,2]
[353267191,1739722287020,-899.47,0.00013093,2]
[353267192,1739722287029,-549.72124647,0.00013093,2]
[353267193,1739722287042,-733.88695644,0.00013093,2]
[353267194,1739722287051,-862.8834809,0.00013093,2]
[353267195,1739722287060,-604.4308571,0.00013093,2]
[353267196,1739722287069,-784.96362088,0.00013093,2]
[353267197,1739722287079,-975.98820309,0.00013093,2]
[353267198,1739722287088,-2237.26512809,0.00013093,2]
[353267199,1739722287098,-151.0,0.0001311,2]
[353267200,1739722287107,-768.06486327,0.00013176,2]
[353267201,1739722287118,-580.0918608,0.00013176,2]
[353267202,1739722287128,-810.058658,0.00013176,2]
[353267203,1739722287137,-969.60878946,0.00013176,2]
[353267204,1739722287146,-537.84177125,0.00013176,2]
[353267205,1739722287155,-743.0246424,0.00013176,2]
[353267206,1739722287164,-849.94187466,0.00013176,2]
[353267207,1739722287174,-788.66340322,0.00013176,2]
[353267208,1739722287183,-731.06083691,0.00013176,2]
[353267209,1739722287192,-899.62667781,0.00013176,2]
[353267210,1739722287202,-3192.78945635,0.00013186,2]
[353267211,1739722287211,-153.0,0.00013187,2]
[353267212,1739722287220,-153.0,0.00013194,2]
[353267213,1739722287229,-153.0,0.00013194,2]
[353267214,1739722287239,-153.0,0.00013202,2]
[353267215,1739722287248,-153.0,0.00013218,2]
[353267216,1739722287257,-542.44079569,0.00013221,2]
[353267217,1739722287266,-153.0,0.00013226,2]
[353267218,1739722287275,-153.0,0.00013233,2]
[353267219,1739722287284,-152.0,0.00013242,6]
[353267220,1739722287293,-1296.65495,0.00013246,2]
[353267221,1739722287302,-302.882515,0.00013341,2]
[353267222,1739722287311,-302.882515,0.00013341,2]
[353267223,1739722287321,-151.0,0.00013341,2]
[353267224,1739722287330,-150.0,0.00013401,2]
[353267225,1739722287339,-152.0,0.00013417,7]
[353267226,1739722287348,-3749.719421,0.00013424,2]
[353267227,1739722287358,-3749.719421,0.00013424,2]
[353267228,1739722287367,-500.0,0.00013424,2]
[353267229,1739722287376,-500.0,0.00013424,2]
[353267230,1739722287385,-500.0,0.00013424,2]
[353267231,1739722287394,-500.0,0.00013424,2]
[353267232,1739722287403,-500.0,0.00013424,2]
[353267233,1739722287412,-500.0,0.00013424,2]
[353267234,1739722287421,-500.0,0.00013424,2]
[353267235,1739722287430,-376.24519787,0.00013424,2]
[353267236,1739722287439,-151.0,0.00013528,2]
[353267237,1739722287448,-151.0,0.00013528,2]
[353267238,1739722287457,-151.0,0.00013528,2]
[353267239,1739722287466,-151.0,0.00013528,2]
[353267240,1739722287475,-403.62402,0.00013528,2]
[353267241,1739722287484,-403.62402,0.00013528,2]
[353267242,1739722287494,-4024.19371614,0.00013532,2]
[353267243,1739722287503,-5800.0,0.00013533,2]
[353267244,1739722287512,-154.0,0.00013534,2]
[353267245,1739722287521,-152.0,0.00013592,8]
[353267246,1739722287530,-5800.0,0.00013615,2]
[353267247,1739722287539,-5800.0,0.00013615,2]
[353267248,1739722287548,-151.0,0.00013615,2]
[353267249,1739722287557,-151.0,0.00013615,2]
[353267250,1739722287565,-151.0,0.00013615,2]
[353267251,1739722287574,-190.102501,0.00013615,2]
[353267252,1739722287588,-190.102501,0.00013615,2]
[353267253,1739722287597,-151.0,0.00013615,2]
[353267254,1739722287607,-423.955814,0.00013615,2]
[353267255,1739722287616,-423.955814,0.00013615,2]
[353267256,1739722287624,-235.374187,0.00013615,2]
[353267257,1739722287633,-235.374187,0.00013615,2]
[353267258,1739722287642,-151.0,0.00013615,2]
[353267259,1739722287651,-151.0,0.00013615,2]
[353267260,1739722287661,-2010.234707,0.00013615,2]
[353267261,1739722287670,-2010.234707,0.00013615,2]
[353267262,1739722287679,-421.23963344,0.00013655,2]
[353267263,1739722287688,-285.331135,0.00013686,2]
[353267264,1739722287698,-315.38795044,0.00013695,2]
[353267265,1739722287707,-123735.33099989,0.00013695,2]
[353267266,1739722287718,-135300.38178025,0.00013695,2]
[353267267,1739722287730,-226.849896,0.00013695,2]
[353267268,1739722287740,-226.849896,0.00013695,2]
[353267269,1739722287749,-151.0,0.00013695,2]
[353267270,1739722287760,-151.0,0.00013695,2]
[353267271,1739722287770,-930.431967,0.00013695,2]
[353267272,1739722287780,-930.431967,0.00013695,2]
[353267273,1739722287790,-3357.148566,0.00013695,2]
[353267274,1739722287799,-384.472713,0.00013695,2]
[353267275,1739722287808,-384.472713,0.00013695,2]
[353267276,1739722287817,-341.804092,0.00013695,2]
[353267277,1739722287827,-341.804092,0.00013695,2]
[353267278,1739722287836,-151.0,0.00013695,2]
[353267279,1739722287845,-279.565284,0.00013695,2]
[353267280,1739722287855,-279.565284,0.00013695,2]
[353267281,1739722287864,-151.0,0.00013695,2]
[353267282,1739722287873,-305.72,0.00013695,2]
[353267283,1739722287882,-305.72,0.00013695,2]
[353267284,1739722287891,-151.0,0.00013695,2]
[353267285,1739722287900,-225.522663,0.00013695,2]
[353267286,1739722287910,-225.15803,0.00013695,2]
[353267287,1739722287920,-225.15803,0.00013695,2]
[353267288,1739722287930,-270.932697,0.00013695,2]
[353267289,1739722287939,-270.932697,0.00013695,2]
[353267290,1739722287949,-488.052487,0.00013695,2]
[353267291,1739722287959,-488.052487,0.00013695,2]
[353267292,1739722287968,-512.78168383,0.00013698,2]
[353267293,1739722287979,-1707.06,0.00013698,2]
[353267294,1739722287988,-1707.06,0.00013698,2]
[353267295,1739722287998,-1707.06,0.00013698,2]
[353267296,1739722288008,-1707.06,0.00013698,2]
[353267297,1739722288018,-1707.06,0.00013698,2]
[353267298,1739722288027,-1707.06,0.00013698,2]
[353267299,1739722288040,-1707.06,0.00013698,2]
[353267300,1739722288050,-1707.06,0.00013698,2]
[353267301,1739722288059,-1707.06,0.00013698,2]
[353267302,1739722288068,-1707.06,0.00013698,2]
[353267303,1739722288078,-1707.06,0.00013698,2]
[353267304,1739722288090,-1707.06,0.00013698,2]
[353267305,1739722288100,-1707.06,0.00013698,2]
[353267306,1739722288109,-1707.06,0.00013698,2]
[353267307,1739722288120,-1707.06,0.00013698,2]
[353267308,1739722288130,-1707.06,0.00013698,2]
[353267309,1739722288140,-1707.06,0.00013698,2]
[353267310,1739722288150,-1707.06,0.00013698,2]
[353267311,1739722288160,-1707.06,0.00013698,2]
[353267312,1739722288170,-1707.06,0.00013698,2]
[353267313,1739722288179,-1707.06,0.00013698,2]
[353267314,1739722288189,-1707.06,0.00013698,2]